Workbook

Sheet BLANK 12 Month Business Budget
B1: 12-MONTH BUSINESS BUDGET
B3: PROFIT & LOSS CATEGORY | C3: JAN | D3: FEB | E3: MAR | F3: Q1 TOTAL | G3: APR | H3: MAY | I3: JUN | J3: Q2 TOTAL | K3: JUL | L3: AUG | M3: SEPT | N3: Q3 TOTAL | O3: OCT | P3: NOV | Q3: DEC | R3: Q4 TOTAL | S3: YR TOTAL
B4: REVENUE
B5: BUDGET | F5: =SUM(C5:E5) -> 0 | J5: =SUM(G5:I5) -> 0 | N5: =SUM(K5:M5) -> 0 | R5: =SUM(O5:Q5) -> 0 | S5: =SUM(F5,J5,N5,R5) -> 0
B6: ACTUAL | F6: =SUM(C6:E6) -> 0 | J6: =SUM(G6:I6) -> 0 | N6: =SUM(K6:M6) -> 0 | R6: =SUM(O6:Q6) -> 0 | S6: =SUM(F6,J6,N6,R6) -> 0
B7: VARIANCE | C7: =C6-C5 -> 0 | D7: =D6-D5 -> 0 | E7: 0 | F7: =F6-F5 -> 0 | G7: =G6-G5 -> 0 | H7: =H6-H5 -> 0 | I7: 0 | J7: =J6-J5 -> 0 | K7: =K6-K5 -> 0 | L7: =L6-L5 -> 0 | M7: 0 | N7: =N6-N5 -> 0 | O7: =O6-O5 -> 0 | P7: =P6-P5 -> 0 | Q7: 0 | R7: =R6-R5 -> 0 | S7: 0
B8: PREVIOUS YEAR ACTUAL | F8: =SUM(C8:E8) -> 0 | J8: =SUM(G8:I8) -> 0 | N8: =SUM(K8:M8) -> 0 | R8: =SUM(O8:Q8) -> 0 | S8: 0
B9: PREVIOUS YEAR VARIANCE | C9: =C6-C8 -> 0 | D9: =D6-D8 -> 0 | E9: 0 | F9: 0 | G9: =G6-G8 -> 0 | H9: =H6-H8 -> 0 | I9: 0 | J9: 0 | K9: =K6-K8 -> 0 | L9: =L6-L8 -> 0 | M9: 0 | N9: 0 | O9: =O6-O8 -> 0 | P9: =P6-P8 -> 0 | Q9: 0 | R9: 0 | S9: 0
B10: COGS Cost of Goods Sold
B11: BUDGET | F11: =SUM(C11:E11) -> 0 | J11: =SUM(G11:I11) -> 0 | N11: =SUM(K11:M11) -> 0 | R11: =SUM(O11:Q11) -> 0 | S11: =SUM(F11,J11,N11,R11) -> 0
B12: ACTUAL | F12: =SUM(C12:E12) -> 0 | J12: =SUM(G12:I12) -> 0 | N12: =SUM(K12:M12) -> 0 | R12: =SUM(O12:Q12) -> 0 | S12: =SUM(F12,J12,N12,R12) -> 0
B13: VARIANCE | C13: =C12-C11 -> 0 | D13: =D12-D11 -> 0 | E13: =E12-E11 -> 0 | F13: =F12-F11 -> 0 | G13: =G12-G11 -> 0 | H13: =H12-H11 -> 0 | I13: =I12-I11 -> 0 | J13: =J12-J11 -> 0 | K13: =K12-K11 -> 0 | L13: =L12-L11 -> 0 | M13: =M12-M11 -> 0 | N13: =N12-N11 -> 0 | O13: =O12-O11 -> 0 | P13: =P12-P11 -> 0 | Q13: =Q12-Q11 -> 0 | R13: =R12-R11 -> 0 | S13: 0
B14: PREVIOUS YEAR ACTUAL | F14: =SUM(C14:E14) -> 0 | J14: =SUM(G14:I14) -> 0 | N14: =SUM(K14:M14) -> 0 | R14: =SUM(O14:Q14) -> 0 | S14: 0
B15: PREVIOUS YEAR VARIANCE | C15: =C12-C14 -> 0 | D15: =D12-D14 -> 0 | E15: =E12-E14 -> 0 | F15: =F12-F14 -> 0 | G15: =G12-G14 -> 0 | H15: =H12-H14 -> 0 | I15: =I12-I14 -> 0 | J15: =J12-J14 -> 0 | K15: =K12-K14 -> 0 | L15: =L12-L14 -> 0 | M15: =M12-M14 -> 0 | N15: =N12-N14 -> 0 | O15: =O12-O14 -> 0 | P15: =P12-P14 -> 0 | Q15: =Q12-Q14 -> 0 | R15: =R12-R14 -> 0 | S15: 0
B16: SALES/MARKETING COSTS
B17: BUDGET | F17: =SUM(C17:E17) -> 0 | J17: =SUM(G17:I17) -> 0 | N17: =SUM(K17:M17) -> 0 | R17: =SUM(O17:Q17) -> 0 | S17: =SUM(F17,J17,N17,R17) -> 0
B18: ACTUAL | F18: =SUM(C18:E18) -> 0 | J18: =SUM(G18:I18) -> 0 | N18: =SUM(K18:M18) -> 0 | R18: =SUM(O18:Q18) -> 0 | S18: =SUM(F18,J18,N18,R18) -> 0
B19: VARIANCE | C19: =C18-C17 -> 0 | D19: =D18-D17 -> 0 | E19: =E18-E17 -> 0 | F19: =F18-F17 -> 0 | G19: =G18-G17 -> 0 | H19: =H18-H17 -> 0 | I19: =I18-I17 -> 0 | J19: =J18-J17 -> 0 | K19: =K18-K17 -> 0 | L19: =L18-L17 -> 0 | M19: =M18-M17 -> 0 | N19: =N18-N17 -> 0 | O19: =O18-O17 -> 0 | P19: =P18-P17 -> 0 | Q19: =Q18-Q17 -> 0 | R19: =R18-R17 -> 0 | S19: 0
B20: PREVIOUS YEAR ACTUAL | F20: =SUM(C20:E20) -> 0 | J20: =SUM(G20:I20) -> 0 | N20: =SUM(K20:M20) -> 0 | R20: =SUM(O20:Q20) -> 0 | S20: 0
B21: PREVIOUS YEAR VARIANCE | C21: =C18-C20 -> 0 | D21: =D18-D20 -> 0 | E21: =E18-E20 -> 0 | F21: =F18-F20 -> 0 | G21: =G18-G20 -> 0 | H21: =H18-H20 -> 0 | I21: =I18-I20 -> 0 | J21: =J18-J20 -> 0 | K21: =K18-K20 -> 0 | L21: =L18-L20 -> 0 | M21: =M18-M20 -> 0 | N21: =N18-N20 -> 0 | O21: =O18-O20 -> 0 | P21: =P18-P20 -> 0 | Q21: =Q18-Q20 -> 0 | R21: =R18-R20 -> 0 | S21: 0
B22: LABOR COSTS
B23: BUDGET | F23: =SUM(C23:E23) -> 0 | J23: =SUM(G23:I23) -> 0 | N23: =SUM(K23:M23) -> 0 | R23: =SUM(O23:Q23) -> 0 | S23: =SUM(F23,J23,N23,R23) -> 0
B24: ACTUAL | F24: =SUM(C24:E24) -> 0 | J24: =SUM(G24:I24) -> 0 | N24: =SUM(K24:M24) -> 0 | R24: =SUM(O24:Q24) -> 0 | S24: =SUM(F24,J24,N24,R24) -> 0
B25: VARIANCE | C25: =C24-C23 -> 0 | D25: =D24-D23 -> 0 | E25: =E24-E23 -> 0 | F25: =F24-F23 -> 0 | G25: =G24-G23 -> 0 | H25: =H24-H23 -> 0 | I25: =I24-I23 -> 0 | J25: =J24-J23 -> 0 | K25: =K24-K23 -> 0 | L25: =L24-L23 -> 0 | M25: =M24-M23 -> 0 | N25: =N24-N23 -> 0 | O25: =O24-O23 -> 0 | P25: =P24-P23 -> 0 | Q25: =Q24-Q23 -> 0 | R25: =R24-R23 -> 0 | S25: 0
B26: PREVIOUS YEAR ACTUAL | F26: =SUM(C26:E26) -> 0 | J26: =SUM(G26:I26) -> 0 | N26: =SUM(K26:M26) -> 0 | R26: =SUM(O26:Q26) -> 0 | S26: 0
B27: PREVIOUS YEAR VARIANCE | C27: =C24-C26 -> 0 | D27: =D24-D26 -> 0 | E27: =E24-E26 -> 0 | F27: =F24-F26 -> 0 | G27: =G24-G26 -> 0 | H27: =H24-H26 -> 0 | I27: =I24-I26 -> 0 | J27: =J24-J26 -> 0 | K27: =K24-K26 -> 0 | L27: =L24-L26 -> 0 | M27: =M24-M26 -> 0 | N27: =N24-N26 -> 0 | O27: =O24-O26 -> 0 | P27: =P24-P26 -> 0 | Q27: =Q24-Q26 -> 0 | R27: =R24-R26 -> 0 | S27: 0
B28: ADMIN/GENERAL
B29: BUDGET | F29: =SUM(C29:E29) -> 0 | J29: =SUM(G29:I29) -> 0 | N29: =SUM(K29:M29) -> 0 | R29: =SUM(O29:Q29) -> 0 | S29: =SUM(F29,J29,N29,R29) -> 0
B30: ACTUAL | F30: =SUM(C30:E30) -> 0 | J30: =SUM(G30:I30) -> 0 | N30: =SUM(K30:M30) -> 0 | R30: =SUM(O30:Q30) -> 0 | S30: =SUM(F30,J30,N30,R30) -> 0
B31: VARIANCE | C31: =C30-C29 -> 0 | D31: =D30-D29 -> 0 | E31: =E30-E29 -> 0 | F31: =F30-F29 -> 0 | G31: =G30-G29 -> 0 | H31: =H30-H29 -> 0 | I31: =I30-I29 -> 0 | J31: =J30-J29 -> 0 | K31: =K30-K29 -> 0 | L31: =L30-L29 -> 0 | M31: =M30-M29 -> 0 | N31: =N30-N29 -> 0 | O31: =O30-O29 -> 0 | P31: =P30-P29 -> 0 | Q31: =Q30-Q29 -> 0 | R31: =R30-R29 -> 0 | S31: 0
B32: PREVIOUS YEAR ACTUAL | F32: =SUM(C32:E32) -> 0 | J32: =SUM(G32:I32) -> 0 | N32: =SUM(K32:M32) -> 0 | R32: =SUM(O32:Q32) -> 0 | S32: 0
B33: PREVIOUS YEAR VARIANCE | C33: =C30-C32 -> 0 | D33: =D30-D32 -> 0 | E33: =E30-E32 -> 0 | F33: =F30-F32 -> 0 | G33: =G30-G32 -> 0 | H33: =H30-H32 -> 0 | I33: =I30-I32 -> 0 | J33: =J30-J32 -> 0 | K33: =K30-K32 -> 0 | L33: =L30-L32 -> 0 | M33: =M30-M32 -> 0 | N33: =N30-N32 -> 0 | O33: =O30-O32 -> 0 | P33: =P30-P32 -> 0 | Q33: =Q30-Q32 -> 0 | R33: =R30-R32 -> 0 | S33: 0
B34: EBIT Earnings Before Interest & Taxes
B35: BUDGET | F35: =SUM(C35:E35) -> 0 | J35: =SUM(G35:I35) -> 0 | N35: =SUM(K35:M35) -> 0 | R35: =SUM(O35:Q35) -> 0 | S35: =SUM(F35,J35,N35,R35) -> 0
B36: ACTUAL | F36: =SUM(C36:E36) -> 0 | J36: =SUM(G36:I36) -> 0 | N36: =SUM(K36:M36) -> 0 | R36: =SUM(O36:Q36) -> 0 | S36: =SUM(F36,J36,N36,R36) -> 0
B37: VARIANCE | C37: =C36-C35 -> 0 | D37: =D36-D35 -> 0 | E37: =E36-E35 -> 0 | F37: =F36-F35 -> 0 | G37: =G36-G35 -> 0 | H37: =H36-H35 -> 0 | I37: =I36-I35 -> 0 | J37: =J36-J35 -> 0 | K37: =K36-K35 -> 0 | L37: =L36-L35 -> 0 | M37: =M36-M35 -> 0 | N37: =N36-N35 -> 0 | O37: =O36-O35 -> 0 | P37: =P36-P35 -> 0 | Q37: =Q36-Q35 -> 0 | R37: =R36-R35 -> 0 | S37: 0
B38: PREVIOUS YEAR ACTUAL | F38: =SUM(C38:E38) -> 0 | J38: =SUM(G38:I38) -> 0 | N38: =SUM(K38:M38) -> 0 | R38: =SUM(O38:Q38) -> 0 | S38: 0
B39: PREVIOUS YEAR VARIANCE | C39: =C36-C38 -> 0 | D39: =D36-D38 -> 0 | E39: =E36-E38 -> 0 | F39: =F36-F38 -> 0 | G39: =G36-G38 -> 0 | H39: =H36-H38 -> 0 | I39: =I36-I38 -> 0 | J39: =J36-J38 -> 0 | K39: =K36-K38 -> 0 | L39: =L36-L38 -> 0 | M39: =M36-M38 -> 0 | N39: =N36-N38 -> 0 | O39: =O36-O38 -> 0 | P39: =P36-P38 -> 0 | Q39: =Q36-Q38 -> 0 | R39: =R36-R38 -> 0 | S39: 0
B40: OTHER
B41: BUDGET | F41: =SUM(C41:E41) -> 0 | J41: =SUM(G41:I41) -> 0 | N41: =SUM(K41:M41) -> 0 | R41: =SUM(O41:Q41) -> 0 | S41: =SUM(F41,J41,N41,R41) -> 0
B42: ACTUAL | F42: =SUM(C42:E42) -> 0 | J42: =SUM(G42:I42) -> 0 | N42: =SUM(K42:M42) -> 0 | R42: =SUM(O42:Q42) -> 0 | S42: =SUM(F42,J42,N42,R42) -> 0
B43: VARIANCE | C43: =C42-C41 -> 0 | D43: =D42-D41 -> 0 | E43: =E42-E41 -> 0 | F43: =F42-F41 -> 0 | G43: =G42-G41 -> 0 | H43: =H42-H41 -> 0 | I43: =I42-I41 -> 0 | J43: =J42-J41 -> 0 | K43: =K42-K41 -> 0 | L43: =L42-L41 -> 0 | M43: =M42-M41 -> 0 | N43: =N42-N41 -> 0 | O43: =O42-O41 -> 0 | P43: =P42-P41 -> 0 | Q43: =Q42-Q41 -> 0 | R43: =R42-R41 -> 0 | S43: 0
B44: PREVIOUS YEAR ACTUAL | F44: =SUM(C44:E44) -> 0 | J44: =SUM(G44:I44) -> 0 | N44: =SUM(K44:M44) -> 0 | R44: =SUM(O44:Q44) -> 0 | S44: 0
B45: PREVIOUS YEAR VARIANCE | C45: =C42-C44 -> 0 | D45: =D42-D44 -> 0 | E45: =E42-E44 -> 0 | F45: =F42-F44 -> 0 | G45: =G42-G44 -> 0 | H45: =H42-H44 -> 0 | I45: =I42-I44 -> 0 | J45: =J42-J44 -> 0 | K45: =K42-K44 -> 0 | L45: =L42-L44 -> 0 | M45: =M42-M44 -> 0 | N45: =N42-N44 -> 0 | O45: =O42-O44 -> 0 | P45: =P42-P44 -> 0 | Q45: =Q42-Q44 -> 0 | R45: =R42-R44 -> 0 | S45: 0
B47: BALANCE SHEET CATEGORY | C47: JAN | D47: FEB | E47: MAR | F47: Q1 TOTAL | G47: APR | H47: MAY | I47: JUN | J47: Q2 TOTAL | K47: JUL | L47: AUG | M47: SEPT | N47: Q3 TOTAL | O47: OCT | P47: NOV | Q47: DEC | R47: Q4 TOTAL | S47: YR TOTAL
B48: CASH
B49: BUDGET | F49: =SUM(C49:E49) -> 0 | J49: =SUM(G49:I49) -> 0 | N49: =SUM(K49:M49) -> 0 | R49: =SUM(O49:Q49) -> 0 | S49: =SUM(F49,J49,N49,R49) -> 0
B50: ACTUAL | F50: =SUM(C50:E50) -> 0 | J50: =SUM(G50:I50) -> 0 | N50: =SUM(K50:M50) -> 0 | R50: =SUM(O50:Q50) -> 0 | S50: =SUM(F50,J50,N50,R50) -> 0
B51: VARIANCE | C51: =C50-C49 -> 0 | D51: =D50-D49 -> 0 | E51: =E50-E49 -> 0 | F51: =F50-F49 -> 0 | G51: =G50-G49 -> 0 | H51: =H50-H49 -> 0 | I51: =I50-I49 -> 0 | J51: =J50-J49 -> 0 | K51: =K50-K49 -> 0 | L51: =L50-L49 -> 0 | M51: =M50-M49 -> 0 | N51: =N50-N49 -> 0 | O51: =O50-O49 -> 0 | P51: =P50-P49 -> 0 | Q51: =Q50-Q49 -> 0 | R51: =R50-R49 -> 0 | S51: 0
B52: PREVIOUS YEAR ACTUAL | F52: =SUM(C52:E52) -> 0 | J52: =SUM(G52:I52) -> 0 | N52: =SUM(K52:M52) -> 0 | R52: =SUM(O52:Q52) -> 0 | S52: 0
B53: PREVIOUS YEAR VARIANCE | C53: =C50-C52 -> 0 | D53: =D50-D52 -> 0 | E53: =E50-E52 -> 0 | F53: =F50-F52 -> 0 | G53: =G50-G52 -> 0 | H53: =H50-H52 -> 0 | I53: =I50-I52 -> 0 | J53: =J50-J52 -> 0 | K53: =K50-K52 -> 0 | L53: =L50-L52 -> 0 | M53: =M50-M52 -> 0 | N53: =N50-N52 -> 0 | O53: =O50-O52 -> 0 | P53: =P50-P52 -> 0 | Q53: =Q50-Q52 -> 0 | R53: =R50-R52 -> 0 | S53: 0
B54: INVENTORY
B55: BUDGET | F55: =SUM(C55:E55) -> 0 | J55: =SUM(G55:I55) -> 0 | N55: =SUM(K55:M55) -> 0 | R55: =SUM(O55:Q55) -> 0 | S55: =SUM(F55,J55,N55,R55) -> 0
B56: ACTUAL | F56: =SUM(C56:E56) -> 0 | J56: =SUM(G56:I56) -> 0 | N56: =SUM(K56:M56) -> 0 | R56: =SUM(O56:Q56) -> 0 | S56: =SUM(F56,J56,N56,R56) -> 0
B57: VARIANCE | C57: =C56-C55 -> 0 | D57: =D56-D55 -> 0 | E57: =E56-E55 -> 0 | F57: =F56-F55 -> 0 | G57: =G56-G55 -> 0 | H57: =H56-H55 -> 0 | I57: =I56-I55 -> 0 | J57: =J56-J55 -> 0 | K57: =K56-K55 -> 0 | L57: =L56-L55 -> 0 | M57: =M56-M55 -> 0 | N57: =N56-N55 -> 0 | O57: =O56-O55 -> 0 | P57: =P56-P55 -> 0 | Q57: =Q56-Q55 -> 0 | R57: =R56-R55 -> 0 | S57: 0
B58: PREVIOUS YEAR ACTUAL | F58: =SUM(C58:E58) -> 0 | J58: =SUM(G58:I58) -> 0 | N58: =SUM(K58:M58) -> 0 | R58: =SUM(O58:Q58) -> 0 | S58: 0
B59: PREVIOUS YEAR VARIANCE | C59: =C56-C58 -> 0 | D59: =D56-D58 -> 0 | E59: =E56-E58 -> 0 | F59: =F56-F58 -> 0 | G59: =G56-G58 -> 0 | H59: =H56-H58 -> 0 | I59: =I56-I58 -> 0 | J59: =J56-J58 -> 0 | K59: =K56-K58 -> 0 | L59: =L56-L58 -> 0 | M59: =M56-M58 -> 0 | N59: =N56-N58 -> 0 | O59: =O56-O58 -> 0 | P59: =P56-P58 -> 0 | Q59: =Q56-Q58 -> 0 | R59: =R56-R58 -> 0 | S59: 0
B60: ACCOUNTS RECEIVABLE
B61: BUDGET | F61: =SUM(C61:E61) -> 0 | J61: =SUM(G61:I61) -> 0 | N61: =SUM(K61:M61) -> 0 | R61: =SUM(O61:Q61) -> 0 | S61: =SUM(F61,J61,N61,R61) -> 0
B62: ACTUAL | F62: =SUM(C62:E62) -> 0 | J62: =SUM(G62:I62) -> 0 | N62: =SUM(K62:M62) -> 0 | R62: =SUM(O62:Q62) -> 0 | S62: =SUM(F62,J62,N62,R62) -> 0
B63: VARIANCE | C63: =C62-C61 -> 0 | D63: =D62-D61 -> 0 | E63: =E62-E61 -> 0 | F63: =F62-F61 -> 0 | G63: =G62-G61 -> 0 | H63: =H62-H61 -> 0 | I63: =I62-I61 -> 0 | J63: =J62-J61 -> 0 | K63: =K62-K61 -> 0 | L63: =L62-L61 -> 0 | M63: =M62-M61 -> 0 | N63: =N62-N61 -> 0 | O63: =O62-O61 -> 0 | P63: =P62-P61 -> 0 | Q63: =Q62-Q61 -> 0 | R63: =R62-R61 -> 0 | S63: 0
B64: PREVIOUS YEAR ACTUAL | F64: =SUM(C64:E64) -> 0 | J64: =SUM(G64:I64) -> 0 | N64: =SUM(K64:M64) -> 0 | R64: =SUM(O64:Q64) -> 0 | S64: 0
B65: PREVIOUS YEAR VARIANCE | C65: =C62-C64 -> 0 | D65: =D62-D64 -> 0 | E65: =E62-E64 -> 0 | F65: =F62-F64 -> 0 | G65: =G62-G64 -> 0 | H65: =H62-H64 -> 0 | I65: =I62-I64 -> 0 | J65: =J62-J64 -> 0 | K65: =K62-K64 -> 0 | L65: =L62-L64 -> 0 | M65: =M62-M64 -> 0 | N65: =N62-N64 -> 0 | O65: =O62-O64 -> 0 | P65: =P62-P64 -> 0 | Q65: =Q62-Q64 -> 0 | R65: =R62-R64 -> 0 | S65: 0
B66: NET FIXED ASSETS
B67: BUDGET | F67: =SUM(C67:E67) -> 0 | J67: =SUM(G67:I67) -> 0 | N67: =SUM(K67:M67) -> 0 | R67: =SUM(O67:Q67) -> 0 | S67: =SUM(F67,J67,N67,R67) -> 0
B68: ACTUAL | F68: =SUM(C68:E68) -> 0 | J68: =SUM(G68:I68) -> 0 | N68: =SUM(K68:M68) -> 0 | R68: =SUM(O68:Q68) -> 0 | S68: =SUM(F68,J68,N68,R68) -> 0
B69: VARIANCE | C69: =C68-C67 -> 0 | D69: =D68-D67 -> 0 | E69: =E68-E67 -> 0 | F69: =F68-F67 -> 0 | G69: =G68-G67 -> 0 | H69: =H68-H67 -> 0 | I69: =I68-I67 -> 0 | J69: =J68-J67 -> 0 | K69: =K68-K67 -> 0 | L69: =L68-L67 -> 0 | M69: =M68-M67 -> 0 | N69: =N68-N67 -> 0 | O69: =O68-O67 -> 0 | P69: =P68-P67 -> 0 | Q69: =Q68-Q67 -> 0 | R69: =R68-R67 -> 0 | S69: 0
B70: PREVIOUS YEAR ACTUAL | F70: =SUM(C70:E70) -> 0 | J70: =SUM(G70:I70) -> 0 | N70: =SUM(K70:M70) -> 0 | R70: =SUM(O70:Q70) -> 0 | S70: 0
B71: PREVIOUS YEAR VARIANCE | C71: =C68-C70 -> 0 | D71: =D68-D70 -> 0 | E71: =E68-E70 -> 0 | F71: =F68-F70 -> 0 | G71: =G68-G70 -> 0 | H71: =H68-H70 -> 0 | I71: =I68-I70 -> 0 | J71: =J68-J70 -> 0 | K71: =K68-K70 -> 0 | L71: =L68-L70 -> 0 | M71: =M68-M70 -> 0 | N71: =N68-N70 -> 0 | O71: =O68-O70 -> 0 | P71: =P68-P70 -> 0 | Q71: =Q68-Q70 -> 0 | R71: =R68-R70 -> 0 | S71: 0
B72: ACCOUNTS PAYABLE
B73: BUDGET | F73: =SUM(C73:E73) -> 0 | J73: =SUM(G73:I73) -> 0 | N73: =SUM(K73:M73) -> 0 | R73: =SUM(O73:Q73) -> 0 | S73: =SUM(F73,J73,N73,R73) -> 0
B74: ACTUAL | F74: =SUM(C74:E74) -> 0 | J74: =SUM(G74:I74) -> 0 | N74: =SUM(K74:M74) -> 0 | R74: =SUM(O74:Q74) -> 0 | S74: =SUM(F74,J74,N74,R74) -> 0
B75: VARIANCE | C75: =C74-C73 -> 0 | D75: =D74-D73 -> 0 | E75: =E74-E73 -> 0 | F75: =F74-F73 -> 0 | G75: =G74-G73 -> 0 | H75: =H74-H73 -> 0 | I75: =I74-I73 -> 0 | J75: =J74-J73 -> 0 | K75: =K74-K73 -> 0 | L75: =L74-L73 -> 0 | M75: =M74-M73 -> 0 | N75: =N74-N73 -> 0 | O75: =O74-O73 -> 0 | P75: =P74-P73 -> 0 | Q75: =Q74-Q73 -> 0 | R75: =R74-R73 -> 0 | S75: 0
B76: PREVIOUS YEAR ACTUAL | F76: =SUM(C76:E76) -> 0 | J76: =SUM(G76:I76) -> 0 | N76: =SUM(K76:M76) -> 0 | R76: =SUM(O76:Q76) -> 0 | S76: 0
B77: PREVIOUS YEAR VARIANCE | C77: =C74-C76 -> 0 | D77: =D74-D76 -> 0 | E77: =E74-E76 -> 0 | F77: =F74-F76 -> 0 | G77: =G74-G76 -> 0 | H77: =H74-H76 -> 0 | I77: =I74-I76 -> 0 | J77: =J74-J76 -> 0 | K77: =K74-K76 -> 0 | L77: =L74-L76 -> 0 | M77: =M74-M76 -> 0 | N77: =N74-N76 -> 0 | O77: =O74-O76 -> 0 | P77: =P74-P76 -> 0 | Q77: =Q74-Q76 -> 0 | R77: =R74-R76 -> 0 | S77: 0
B78: LONG-TERM DEBT
B79: BUDGET | F79: =SUM(C79:E79) -> 0 | J79: =SUM(G79:I79) -> 0 | N79: =SUM(K79:M79) -> 0 | R79: =SUM(O79:Q79) -> 0 | S79: =SUM(F79,J79,N79,R79) -> 0
B80: ACTUAL | F80: =SUM(C80:E80) -> 0 | J80: =SUM(G80:I80) -> 0 | N80: =SUM(K80:M80) -> 0 | R80: =SUM(O80:Q80) -> 0 | S80: =SUM(F80,J80,N80,R80) -> 0
B81: VARIANCE | C81: =C80-C79 -> 0 | D81: =D80-D79 -> 0 | E81: =E80-E79 -> 0 | F81: =F80-F79 -> 0 | G81: =G80-G79 -> 0 | H81: =H80-H79 -> 0 | I81: =I80-I79 -> 0 | J81: =J80-J79 -> 0 | K81: =K80-K79 -> 0 | L81: =L80-L79 -> 0 | M81: =M80-M79 -> 0 | N81: =N80-N79 -> 0 | O81: =O80-O79 -> 0 | P81: =P80-P79 -> 0 | Q81: =Q80-Q79 -> 0 | R81: =R80-R79 -> 0 | S81: 0
B82: PREVIOUS YEAR ACTUAL | F82: =SUM(C82:E82) -> 0 | J82: =SUM(G82:I82) -> 0 | N82: =SUM(K82:M82) -> 0 | R82: =SUM(O82:Q82) -> 0 | S82: 0
B83: PREVIOUS YEAR VARIANCE | C83: =C80-C82 -> 0 | D83: =D80-D82 -> 0 | E83: =E80-E82 -> 0 | F83: =F80-F82 -> 0 | G83: =G80-G82 -> 0 | H83: =H80-H82 -> 0 | I83: =I80-I82 -> 0 | J83: =J80-J82 -> 0 | K83: =K80-K82 -> 0 | L83: =L80-L82 -> 0 | M83: =M80-M82 -> 0 | N83: =N80-N82 -> 0 | O83: =O80-O82 -> 0 | P83: =P80-P82 -> 0 | Q83: =Q80-Q82 -> 0 | R83: =R80-R82 -> 0 | S83: 0
B84: OTHER
B85: BUDGET | F85: =SUM(C85:E85) -> 0 | J85: =SUM(G85:I85) -> 0 | N85: =SUM(K85:M85) -> 0 | R85: =SUM(O85:Q85) -> 0 | S85: =SUM(F85,J85,N85,R85) -> 0
B86: ACTUAL | F86: =SUM(C86:E86) -> 0 | J86: =SUM(G86:I86) -> 0 | N86: =SUM(K86:M86) -> 0 | R86: =SUM(O86:Q86) -> 0 | S86: =SUM(F86,J86,N86,R86) -> 0
B87: VARIANCE | C87: =C86-C85 -> 0 | D87: =D86-D85 -> 0 | E87: =E86-E85 -> 0 | F87: =F86-F85 -> 0 | G87: =G86-G85 -> 0 | H87: =H86-H85 -> 0 | I87: =I86-I85 -> 0 | J87: =J86-J85 -> 0 | K87: =K86-K85 -> 0 | L87: =L86-L85 -> 0 | M87: =M86-M85 -> 0 | N87: =N86-N85 -> 0 | O87: =O86-O85 -> 0 | P87: =P86-P85 -> 0 | Q87: =Q86-Q85 -> 0 | R87: =R86-R85 -> 0 | S87: 0
B88: PREVIOUS YEAR ACTUAL | F88: =SUM(C88:E88) -> 0 | J88: =SUM(G88:I88) -> 0 | N88: =SUM(K88:M88) -> 0 | R88: =SUM(O88:Q88) -> 0 | S88: 0
B89: PREVIOUS YEAR VARIANCE | C89: =C86-C88 -> 0 | D89: =D86-D88 -> 0 | E89: =E86-E88 -> 0 | F89: =F86-F88 -> 0 | G89: =G86-G88 -> 0 | H89: =H86-H88 -> 0 | I89: =I86-I88 -> 0 | J89: =J86-J88 -> 0 | K89: =K86-K88 -> 0 | L89: =L86-L88 -> 0 | M89: =M86-M88 -> 0 | N89: =N86-N88 -> 0 | O89: =O86-O88 -> 0 | P89: =P86-P88 -> 0 | Q89: =Q86-Q88 -> 0 | R89: =R86-R88 -> 0 | S89: 0
B91: CLICK HERE TO CREATE 12-MONTH BUSINESS BUDGET TEMPLATES IN SMARTSHEET

Sheet 12 Month Business Budget
B1: 12 MONTH BUSINESS BUDGET
B3: PROFIT & LOSS CATEGORY | C3: JAN | D3: FEB | E3: MAR | F3: Q1 TOTAL | G3: APR | H3: MAY | I3: JUN | J3: Q2 TOTAL | K3: JUL | L3: AUG | M3: SEPT | N3: Q3 TOTAL | O3: OCT | P3: NOV | Q3: DEC | R3: Q4 TOTAL | S3: YR TOTAL
B4: REVENUE
B5: BUDGET | C5: 1000 | D5: 1000 | E5: 1000 | F5: =SUM(C5:E5) -> 3000 | G5: 1000 | H5: 1000 | I5: 1000 | J5: =SUM(G5:I5) -> 3000 | K5: 1000 | L5: 1000 | M5: 1000 | N5: =SUM(K5:M5) -> 3000 | O5: 1000 | P5: 1000 | Q5: 1000 | R5: =SUM(O5:Q5) -> 3000 | S5: =SUM(F5,J5,N5,R5) -> 12000
B6: ACTUAL | C6: 500 | D6: 700 | E6: 1100 | F6: =SUM(C6:E6) -> 2300 | G6: 500 | H6: 700 | I6: 1100 | J6: =SUM(G6:I6) -> 2300 | K6: 500 | L6: 700 | M6: 1100 | N6: =SUM(K6:M6) -> 2300 | O6: 500 | P6: 700 | Q6: 1100 | R6: =SUM(O6:Q6) -> 2300 | S6: =SUM(F6,J6,N6,R6) -> 9200
B7: VARIANCE | C7: =C6-C5 -> -500 | D7: =D6-D5 -> -300 | E7: 100 | F7: =F6-F5 -> -700 | G7: =G6-G5 -> -500 | H7: =H6-H5 -> -300 | I7: =I6-I5 -> 100 | J7: =J6-J5 -> -700 | K7: =K6-K5 -> -500 | L7: =L6-L5 -> -300 | M7: =M6-M5 -> 100 | N7: =N6-N5 -> -700 | O7: =O6-O5 -> -500 | P7: =P6-P5 -> -300 | Q7: =Q6-Q5 -> 100 | R7: =R6-R5 -> -700 | S7: -2800
B8: PREVIOUS YEAR ACTUAL | C8: 700 | D8: 1100 | E8: 800 | F8: =SUM(C8:E8) -> 2600 | G8: 700 | H8: 1100 | I8: 800 | J8: =SUM(G8:I8) -> 2600 | K8: 700 | L8: 1100 | M8: 800 | N8: =SUM(K8:M8) -> 2600 | O8: 700 | P8: 1100 | Q8: 800 | R8: =SUM(O8:Q8) -> 2600 | S8: 10400
B9: PREVIOUS YEAR VARIANCE | C9: =C6-C8 -> -200 | D9: =D6-D8 -> -400 | E9: 300 | F9: -300 | G9: =G6-G8 -> -200 | H9: =H6-H8 -> -400 | I9: =I6-I8 -> 300 | J9: =J6-J8 -> -300 | K9: =K6-K8 -> -200 | L9: =L6-L8 -> -400 | M9: =M6-M8 -> 300 | N9: =N6-N8 -> -300 | O9: =O6-O8 -> -200 | P9: =P6-P8 -> -400 | Q9: =Q6-Q8 -> 300 | R9: =R6-R8 -> -300 | S9: -1200
B10: COGS Cost of Goods Sold
B11: BUDGET | C11: 1000 | D11: 1000 | E11: 1000 | F11: =SUM(C11:E11) -> 3000 | G11: 1000 | H11: 1000 | I11: 1000 | J11: =SUM(G11:I11) -> 3000 | K11: 1000 | L11: 1000 | M11: 1000 | N11: =SUM(K11:M11) -> 3000 | O11: 1000 | P11: 1000 | Q11: 1000 | R11: =SUM(O11:Q11) -> 3000 | S11: =SUM(F11,J11,N11,R11) -> 12000
B12: ACTUAL | C12: 500 | D12: 700 | E12: 1100 | F12: =SUM(C12:E12) -> 2300 | G12: 500 | H12: 700 | I12: 1100 | J12: =SUM(G12:I12) -> 2300 | K12: 500 | L12: 700 | M12: 1100 | N12: =SUM(K12:M12) -> 2300 | O12: 500 | P12: 700 | Q12: 1100 | R12: =SUM(O12:Q12) -> 2300 | S12: =SUM(F12,J12,N12,R12) -> 9200
B13: VARIANCE | C13: =C12-C11 -> -500 | D13: =D12-D11 -> -300 | E13: =E12-E11 -> 100 | F13: =F12-F11 -> -700 | G13: =G12-G11 -> -500 | H13: =H12-H11 -> -300 | I13: =I12-I11 -> 100 | J13: =J12-J11 -> -700 | K13: =K12-K11 -> -500 | L13: =L12-L11 -> -300 | M13: =M12-M11 -> 100 | N13: =N12-N11 -> -700 | O13: =O12-O11 -> -500 | P13: =P12-P11 -> -300 | Q13: =Q12-Q11 -> 100 | R13: =R12-R11 -> -700 | S13: -2800
B14: PREVIOUS YEAR ACTUAL | C14: 700 | D14: 1100 | E14: 800 | F14: =SUM(C14:E14) -> 2600 | G14: 700 | H14: 1100 | I14: 800 | J14: =SUM(G14:I14) -> 2600 | K14: 700 | L14: 1100 | M14: 800 | N14: =SUM(K14:M14) -> 2600 | O14: 700 | P14: 1100 | Q14: 800 | R14: =SUM(O14:Q14) -> 2600 | S14: 10400
B15: PREVIOUS YEAR VARIANCE | C15: =C12-C14 -> -200 | D15: =D12-D14 -> -400 | E15: =E12-E14 -> 300 | F15: =F12-F14 -> -300 | G15: =G12-G14 -> -200 | H15: =H12-H14 -> -400 | I15: =I12-I14 -> 300 | J15: =J12-J14 -> -300 | K15: =K12-K14 -> -200 | L15: =L12-L14 -> -400 | M15: =M12-M14 -> 300 | N15: =N12-N14 -> -300 | O15: =O12-O14 -> -200 | P15: =P12-P14 -> -400 | Q15: =Q12-Q14 -> 300 | R15: =R12-R14 -> -300 | S15: -1200
B16: SALES / MARKETING COSTS
B17: BUDGET | C17: 1000 | D17: 1000 | E17: 1000 | F17: =SUM(C17:E17) -> 3000 | G17: 1000 | H17: 1000 | I17: 1000 | J17: =SUM(G17:I17) -> 3000 | K17: 1000 | L17: 1000 | M17: 1000 | N17: =SUM(K17:M17) -> 3000 | O17: 1000 | P17: 1000 | Q17: 1000 | R17: =SUM(O17:Q17) -> 3000 | S17: =SUM(F17,J17,N17,R17) -> 12000
B18: ACTUAL | C18: 500 | D18: 700 | E18: 1100 | F18: =SUM(C18:E18) -> 2300 | G18: 500 | H18: 700 | I18: 1100 | J18: =SUM(G18:I18) -> 2300 | K18: 500 | L18: 700 | M18: 1100 | N18: =SUM(K18:M18) -> 2300 | O18: 500 | P18: 700 | Q18: 1100 | R18: =SUM(O18:Q18) -> 2300 | S18: =SUM(F18,J18,N18,R18) -> 9200
B19: VARIANCE | C19: =C18-C17 -> -500 | D19: =D18-D17 -> -300 | E19: =E18-E17 -> 100 | F19: =F18-F17 -> -700 | G19: =G18-G17 -> -500 | H19: =H18-H17 -> -300 | I19: =I18-I17 -> 100 | J19: =J18-J17 -> -700 | K19: =K18-K17 -> -500 | L19: =L18-L17 -> -300 | M19: =M18-M17 -> 100 | N19: =N18-N17 -> -700 | O19: =O18-O17 -> -500 | P19: =P18-P17 -> -300 | Q19: =Q18-Q17 -> 100 | R19: =R18-R17 -> -700 | S19: -2800
B20: PREVIOUS YEAR ACTUAL | C20: 700 | D20: 1100 | E20: 800 | F20: =SUM(C20:E20) -> 2600 | G20: 700 | H20: 1100 | I20: 800 | J20: =SUM(G20:I20) -> 2600 | K20: 700 | L20: 1100 | M20: 800 | N20: =SUM(K20:M20) -> 2600 | O20: 700 | P20: 1100 | Q20: 800 | R20: =SUM(O20:Q20) -> 2600 | S20: 10400
B21: PREVIOUS YEAR VARIANCE | C21: =C18-C20 -> -200 | D21: =D18-D20 -> -400 | E21: =E18-E20 -> 300 | F21: =F18-F20 -> -300 | G21: =G18-G20 -> -200 | H21: =H18-H20 -> -400 | I21: =I18-I20 -> 300 | J21: =J18-J20 -> -300 | K21: =K18-K20 -> -200 | L21: =L18-L20 -> -400 | M21: =M18-M20 -> 300 | N21: =N18-N20 -> -300 | O21: =O18-O20 -> -200 | P21: =P18-P20 -> -400 | Q21: =Q18-Q20 -> 300 | R21: =R18-R20 -> -300 | S21: -1200
B22: LABOR COSTS
B23: BUDGET | C23: 1000 | D23: 1000 | E23: 1000 | F23: =SUM(C23:E23) -> 3000 | G23: 1000 | H23: 1000 | I23: 1000 | J23: =SUM(G23:I23) -> 3000 | K23: 1000 | L23: 1000 | M23: 1000 | N23: =SUM(K23:M23) -> 3000 | O23: 1000 | P23: 1000 | Q23: 1000 | R23: =SUM(O23:Q23) -> 3000 | S23: =SUM(F23,J23,N23,R23) -> 12000
B24: ACTUAL | C24: 500 | D24: 700 | E24: 1100 | F24: =SUM(C24:E24) -> 2300 | G24: 500 | H24: 700 | I24: 1100 | J24: =SUM(G24:I24) -> 2300 | K24: 500 | L24: 700 | M24: 1100 | N24: =SUM(K24:M24) -> 2300 | O24: 500 | P24: 700 | Q24: 1100 | R24: =SUM(O24:Q24) -> 2300 | S24: =SUM(F24,J24,N24,R24) -> 9200
B25: VARIANCE | C25: =C24-C23 -> -500 | D25: =D24-D23 -> -300 | E25: =E24-E23 -> 100 | F25: =F24-F23 -> -700 | G25: =G24-G23 -> -500 | H25: =H24-H23 -> -300 | I25: =I24-I23 -> 100 | J25: =J24-J23 -> -700 | K25: =K24-K23 -> -500 | L25: =L24-L23 -> -300 | M25: =M24-M23 -> 100 | N25: =N24-N23 -> -700 | O25: =O24-O23 -> -500 | P25: =P24-P23 -> -300 | Q25: =Q24-Q23 -> 100 | R25: =R24-R23 -> -700 | S25: -2800
B26: PREVIOUS YEAR ACTUAL | C26: 700 | D26: 1100 | E26: 800 | F26: =SUM(C26:E26) -> 2600 | G26: 700 | H26: 1100 | I26: 800 | J26: =SUM(G26:I26) -> 2600 | K26: 700 | L26: 1100 | M26: 800 | N26: =SUM(K26:M26) -> 2600 | O26: 700 | P26: 1100 | Q26: 800 | R26: =SUM(O26:Q26) -> 2600 | S26: 10400
B27: PREVIOUS YEAR VARIANCE | C27: =C24-C26 -> -200 | D27: =D24-D26 -> -400 | E27: =E24-E26 -> 300 | F27: =F24-F26 -> -300 | G27: =G24-G26 -> -200 | H27: =H24-H26 -> -400 | I27: =I24-I26 -> 300 | J27: =J24-J26 -> -300 | K27: =K24-K26 -> -200 | L27: =L24-L26 -> -400 | M27: =M24-M26 -> 300 | N27: =N24-N26 -> -300 | O27: =O24-O26 -> -200 | P27: =P24-P26 -> -400 | Q27: =Q24-Q26 -> 300 | R27: =R24-R26 -> -300 | S27: -1200
B28: ADMIN / GENERAL
B29: BUDGET | C29: 1000 | D29: 1000 | E29: 1000 | F29: =SUM(C29:E29) -> 3000 | G29: 1000 | H29: 1000 | I29: 1000 | J29: =SUM(G29:I29) -> 3000 | K29: 1000 | L29: 1000 | M29: 1000 | N29: =SUM(K29:M29) -> 3000 | O29: 1000 | P29: 1000 | Q29: 1000 | R29: =SUM(O29:Q29) -> 3000 | S29: =SUM(F29,J29,N29,R29) -> 12000
B30: ACTUAL | C30: 500 | D30: 700 | E30: 1100 | F30: =SUM(C30:E30) -> 2300 | G30: 500 | H30: 700 | I30: 1100 | J30: =SUM(G30:I30) -> 2300 | K30: 500 | L30: 700 | M30: 1100 | N30: =SUM(K30:M30) -> 2300 | O30: 500 | P30: 700 | Q30: 1100 | R30: =SUM(O30:Q30) -> 2300 | S30: =SUM(F30,J30,N30,R30) -> 9200
B31: VARIANCE | C31: =C30-C29 -> -500 | D31: =D30-D29 -> -300 | E31: =E30-E29 -> 100 | F31: =F30-F29 -> -700 | G31: =G30-G29 -> -500 | H31: =H30-H29 -> -300 | I31: =I30-I29 -> 100 | J31: =J30-J29 -> -700 | K31: =K30-K29 -> -500 | L31: =L30-L29 -> -300 | M31: =M30-M29 -> 100 | N31: =N30-N29 -> -700 | O31: =O30-O29 -> -500 | P31: =P30-P29 -> -300 | Q31: =Q30-Q29 -> 100 | R31: =R30-R29 -> -700 | S31: -2800
B32: PREVIOUS YEAR ACTUAL | C32: 700 | D32: 1100 | E32: 800 | F32: =SUM(C32:E32) -> 2600 | G32: 700 | H32: 1100 | I32: 800 | J32: =SUM(G32:I32) -> 2600 | K32: 700 | L32: 1100 | M32: 800 | N32: =SUM(K32:M32) -> 2600 | O32: 700 | P32: 1100 | Q32: 800 | R32: =SUM(O32:Q32) -> 2600 | S32: 10400
B33: PREVIOUS YEAR VARIANCE | C33: =C30-C32 -> -200 | D33: =D30-D32 -> -400 | E33: =E30-E32 -> 300 | F33: =F30-F32 -> -300 | G33: =G30-G32 -> -200 | H33: =H30-H32 -> -400 | I33: =I30-I32 -> 300 | J33: =J30-J32 -> -300 | K33: =K30-K32 -> -200 | L33: =L30-L32 -> -400 | M33: =M30-M32 -> 300 | N33: =N30-N32 -> -300 | O33: =O30-O32 -> -200 | P33: =P30-P32 -> -400 | Q33: =Q30-Q32 -> 300 | R33: =R30-R32 -> -300 | S33: -1200
B34: EBIT Earnings Before Interest & Taxes
B35: BUDGET | C35: 1000 | D35: 1000 | E35: 1000 | F35: =SUM(C35:E35) -> 3000 | G35: 1000 | H35: 1000 | I35: 1000 | J35: =SUM(G35:I35) -> 3000 | K35: 1000 | L35: 1000 | M35: 1000 | N35: =SUM(K35:M35) -> 3000 | O35: 1000 | P35: 1000 | Q35: 1000 | R35: =SUM(O35:Q35) -> 3000 | S35: =SUM(F35,J35,N35,R35) -> 12000
B36: ACTUAL | C36: 500 | D36: 700 | E36: 1100 | F36: =SUM(C36:E36) -> 2300 | G36: 500 | H36: 700 | I36: 1100 | J36: =SUM(G36:I36) -> 2300 | K36: 500 | L36: 700 | M36: 1100 | N36: =SUM(K36:M36) -> 2300 | O36: 500 | P36: 700 | Q36: 1100 | R36: =SUM(O36:Q36) -> 2300 | S36: =SUM(F36,J36,N36,R36) -> 9200
B37: VARIANCE | C37: =C36-C35 -> -500 | D37: =D36-D35 -> -300 | E37: =E36-E35 -> 100 | F37: =F36-F35 -> -700 | G37: =G36-G35 -> -500 | H37: =H36-H35 -> -300 | I37: =I36-I35 -> 100 | J37: =J36-J35 -> -700 | K37: =K36-K35 -> -500 | L37: =L36-L35 -> -300 | M37: =M36-M35 -> 100 | N37: =N36-N35 -> -700 | O37: =O36-O35 -> -500 | P37: =P36-P35 -> -300 | Q37: =Q36-Q35 -> 100 | R37: =R36-R35 -> -700 | S37: -2800
B38: PREVIOUS YEAR ACTUAL | C38: 700 | D38: 1100 | E38: 800 | F38: =SUM(C38:E38) -> 2600 | G38: 700 | H38: 1100 | I38: 800 | J38: =SUM(G38:I38) -> 2600 | K38: 700 | L38: 1100 | M38: 800 | N38: =SUM(K38:M38) -> 2600 | O38: 700 | P38: 1100 | Q38: 800 | R38: =SUM(O38:Q38) -> 2600 | S38: 10400
B39: PREVIOUS YEAR VARIANCE | C39: =C36-C38 -> -200 | D39: =D36-D38 -> -400 | E39: =E36-E38 -> 300 | F39: =F36-F38 -> -300 | G39: =G36-G38 -> -200 | H39: =H36-H38 -> -400 | I39: =I36-I38 -> 300 | J39: =J36-J38 -> -300 | K39: =K36-K38 -> -200 | L39: =L36-L38 -> -400 | M39: =M36-M38 -> 300 | N39: =N36-N38 -> -300 | O39: =O36-O38 -> -200 | P39: =P36-P38 -> -400 | Q39: =Q36-Q38 -> 300 | R39: =R36-R38 -> -300 | S39: -1200
B40: OTHER
B41: BUDGET | C41: 1000 | D41: 1000 | E41: 1000 | F41: =SUM(C41:E41) -> 3000 | G41: 1000 | H41: 1000 | I41: 1000 | J41: =SUM(G41:I41) -> 3000 | K41: 1000 | L41: 1000 | M41: 1000 | N41: =SUM(K41:M41) -> 3000 | O41: 1000 | P41: 1000 | Q41: 1000 | R41: =SUM(O41:Q41) -> 3000 | S41: =SUM(F41,J41,N41,R41) -> 12000
B42: ACTUAL | C42: 500 | D42: 700 | E42: 1100 | F42: =SUM(C42:E42) -> 2300 | G42: 500 | H42: 700 | I42: 1100 | J42: =SUM(G42:I42) -> 2300 | K42: 500 | L42: 700 | M42: 1100 | N42: =SUM(K42:M42) -> 2300 | O42: 500 | P42: 700 | Q42: 1100 | R42: =SUM(O42:Q42) -> 2300 | S42: =SUM(F42,J42,N42,R42) -> 9200
B43: VARIANCE | C43: =C42-C41 -> -500 | D43: =D42-D41 -> -300 | E43: =E42-E41 -> 100 | F43: =F42-F41 -> -700 | G43: =G42-G41 -> -500 | H43: =H42-H41 -> -300 | I43: =I42-I41 -> 100 | J43: =J42-J41 -> -700 | K43: =K42-K41 -> -500 | L43: =L42-L41 -> -300 | M43: =M42-M41 -> 100 | N43: =N42-N41 -> -700 | O43: =O42-O41 -> -500 | P43: =P42-P41 -> -300 | Q43: =Q42-Q41 -> 100 | R43: =R42-R41 -> -700 | S43: -2800
B44: PREVIOUS YEAR ACTUAL | C44: 700 | D44: 1100 | E44: 800 | F44: =SUM(C44:E44) -> 2600 | G44: 700 | H44: 1100 | I44: 800 | J44: =SUM(G44:I44) -> 2600 | K44: 700 | L44: 1100 | M44: 800 | N44: =SUM(K44:M44) -> 2600 | O44: 700 | P44: 1100 | Q44: 800 | R44: =SUM(O44:Q44) -> 2600 | S44: 10400
B45: PREVIOUS YEAR VARIANCE | C45: =C42-C44 -> -200 | D45: =D42-D44 -> -400 | E45: =E42-E44 -> 300 | F45: =F42-F44 -> -300 | G45: =G42-G44 -> -200 | H45: =H42-H44 -> -400 | I45: =I42-I44 -> 300 | J45: =J42-J44 -> -300 | K45: =K42-K44 -> -200 | L45: =L42-L44 -> -400 | M45: =M42-M44 -> 300 | N45: =N42-N44 -> -300 | O45: =O42-O44 -> -200 | P45: =P42-P44 -> -400 | Q45: =Q42-Q44 -> 300 | R45: =R42-R44 -> -300 | S45: -1200
B47: BALANCE SHEET CATEGORY | C47: JAN | D47: FEB | E47: MAR | F47: Q1 TOTAL | G47: APR | H47: MAY | I47: JUN | J47: Q2 TOTAL | K47: JUL | L47: AUG | M47: SEPT | N47: Q3 TOTAL | O47: OCT | P47: NOV | Q47: DEC | R47: Q4 TOTAL | S47: YR TOTAL
B48: CASH
B49: BUDGET | C49: 1000 | D49: 1000 | E49: 1000 | F49: =SUM(C49:E49) -> 3000 | G49: 1000 | H49: 1000 | I49: 1000 | J49: =SUM(G49:I49) -> 3000 | K49: 1000 | L49: 1000 | M49: 1000 | N49: =SUM(K49:M49) -> 3000 | O49: 1000 | P49: 1000 | Q49: 1000 | R49: =SUM(O49:Q49) -> 3000 | S49: =SUM(F49,J49,N49,R49) -> 12000
B50: ACTUAL | C50: 500 | D50: 700 | E50: 1100 | F50: =SUM(C50:E50) -> 2300 | G50: 500 | H50: 700 | I50: 1100 | J50: =SUM(G50:I50) -> 2300 | K50: 500 | L50: 700 | M50: 1100 | N50: =SUM(K50:M50) -> 2300 | O50: 500 | P50: 700 | Q50: 1100 | R50: =SUM(O50:Q50) -> 2300 | S50: =SUM(F50,J50,N50,R50) -> 9200
B51: VARIANCE | C51: =C50-C49 -> -500 | D51: =D50-D49 -> -300 | E51: =E50-E49 -> 100 | F51: =F50-F49 -> -700 | G51: =G50-G49 -> -500 | H51: =H50-H49 -> -300 | I51: =I50-I49 -> 100 | J51: =J50-J49 -> -700 | K51: =K50-K49 -> -500 | L51: =L50-L49 -> -300 | M51: =M50-M49 -> 100 | N51: =N50-N49 -> -700 | O51: =O50-O49 -> -500 | P51: =P50-P49 -> -300 | Q51: =Q50-Q49 -> 100 | R51: =R50-R49 -> -700 | S51: -2800
B52: PREVIOUS YEAR ACTUAL | C52: 700 | D52: 1100 | E52: 800 | F52: =SUM(C52:E52) -> 2600 | G52: 700 | H52: 1100 | I52: 800 | J52: =SUM(G52:I52) -> 2600 | K52: 700 | L52: 1100 | M52: 800 | N52: =SUM(K52:M52) -> 2600 | O52: 700 | P52: 1100 | Q52: 800 | R52: =SUM(O52:Q52) -> 2600 | S52: 10400
B53: PREVIOUS YEAR VARIANCE | C53: =C50-C52 -> -200 | D53: =D50-D52 -> -400 | E53: =E50-E52 -> 300 | F53: =F50-F52 -> -300 | G53: =G50-G52 -> -200 | H53: =H50-H52 -> -400 | I53: =I50-I52 -> 300 | J53: =J50-J52 -> -300 | K53: =K50-K52 -> -200 | L53: =L50-L52 -> -400 | M53: =M50-M52 -> 300 | N53: =N50-N52 -> -300 | O53: =O50-O52 -> -200 | P53: =P50-P52 -> -400 | Q53: =Q50-Q52 -> 300 | R53: =R50-R52 -> -300 | S53: -1200
B54: INVENTORY
B55: BUDGET | C55: 1000 | D55: 1000 | E55: 1000 | F55: =SUM(C55:E55) -> 3000 | G55: 1000 | H55: 1000 | I55: 1000 | J55: =SUM(G55:I55) -> 3000 | K55: 1000 | L55: 1000 | M55: 1000 | N55: =SUM(K55:M55) -> 3000 | O55: 1000 | P55: 1000 | Q55: 1000 | R55: =SUM(O55:Q55) -> 3000 | S55: =SUM(F55,J55,N55,R55) -> 12000
B56: ACTUAL | C56: 500 | D56: 700 | E56: 1100 | F56: =SUM(C56:E56) -> 2300 | G56: 500 | H56: 700 | I56: 1100 | J56: =SUM(G56:I56) -> 2300 | K56: 500 | L56: 700 | M56: 1100 | N56: =SUM(K56:M56) -> 2300 | O56: 500 | P56: 700 | Q56: 1100 | R56: =SUM(O56:Q56) -> 2300 | S56: =SUM(F56,J56,N56,R56) -> 9200
B57: VARIANCE | C57: =C56-C55 -> -500 | D57: =D56-D55 -> -300 | E57: =E56-E55 -> 100 | F57: =F56-F55 -> -700 | G57: =G56-G55 -> -500 | H57: =H56-H55 -> -300 | I57: =I56-I55 -> 100 | J57: =J56-J55 -> -700 | K57: =K56-K55 -> -500 | L57: =L56-L55 -> -300 | M57: =M56-M55 -> 100 | N57: =N56-N55 -> -700 | O57: =O56-O55 -> -500 | P57: =P56-P55 -> -300 | Q57: =Q56-Q55 -> 100 | R57: =R56-R55 -> -700 | S57: -2800
B58: PREVIOUS YEAR ACTUAL | C58: 700 | D58: 1100 | E58: 800 | F58: =SUM(C58:E58) -> 2600 | G58: 700 | H58: 1100 | I58: 800 | J58: =SUM(G58:I58) -> 2600 | K58: 700 | L58: 1100 | M58: 800 | N58: =SUM(K58:M58) -> 2600 | O58: 700 | P58: 1100 | Q58: 800 | R58: =SUM(O58:Q58) -> 2600 | S58: 10400
B59: PREVIOUS YEAR VARIANCE | C59: =C56-C58 -> -200 | D59: =D56-D58 -> -400 | E59: =E56-E58 -> 300 | F59: =F56-F58 -> -300 | G59: =G56-G58 -> -200 | H59: =H56-H58 -> -400 | I59: =I56-I58 -> 300 | J59: =J56-J58 -> -300 | K59: =K56-K58 -> -200 | L59: =L56-L58 -> -400 | M59: =M56-M58 -> 300 | N59: =N56-N58 -> -300 | O59: =O56-O58 -> -200 | P59: =P56-P58 -> -400 | Q59: =Q56-Q58 -> 300 | R59: =R56-R58 -> -300 | S59: -1200
B60: ACCOUNTS RECEIVABLE
B61: BUDGET | C61: 1000 | D61: 1000 | E61: 1000 | F61: =SUM(C61:E61) -> 3000 | G61: 1000 | H61: 1000 | I61: 1000 | J61: =SUM(G61:I61) -> 3000 | K61: 1000 | L61: 1000 | M61: 1000 | N61: =SUM(K61:M61) -> 3000 | O61: 1000 | P61: 1000 | Q61: 1000 | R61: =SUM(O61:Q61) -> 3000 | S61: =SUM(F61,J61,N61,R61) -> 12000
B62: ACTUAL | C62: 500 | D62: 700 | E62: 1100 | F62: =SUM(C62:E62) -> 2300 | G62: 500 | H62: 700 | I62: 1100 | J62: =SUM(G62:I62) -> 2300 | K62: 500 | L62: 700 | M62: 1100 | N62: =SUM(K62:M62) -> 2300 | O62: 500 | P62: 700 | Q62: 1100 | R62: =SUM(O62:Q62) -> 2300 | S62: =SUM(F62,J62,N62,R62) -> 9200
B63: VARIANCE | C63: =C62-C61 -> -500 | D63: =D62-D61 -> -300 | E63: =E62-E61 -> 100 | F63: =F62-F61 -> -700 | G63: =G62-G61 -> -500 | H63: =H62-H61 -> -300 | I63: =I62-I61 -> 100 | J63: =J62-J61 -> -700 | K63: =K62-K61 -> -500 | L63: =L62-L61 -> -300 | M63: =M62-M61 -> 100 | N63: =N62-N61 -> -700 | O63: =O62-O61 -> -500 | P63: =P62-P61 -> -300 | Q63: =Q62-Q61 -> 100 | R63: =R62-R61 -> -700 | S63: -2800
B64: PREVIOUS YEAR ACTUAL | C64: 700 | D64: 1100 | E64: 800 | F64: =SUM(C64:E64) -> 2600 | G64: 700 | H64: 1100 | I64: 800 | J64: =SUM(G64:I64) -> 2600 | K64: 700 | L64: 1100 | M64: 800 | N64: =SUM(K64:M64) -> 2600 | O64: 700 | P64: 1100 | Q64: 800 | R64: =SUM(O64:Q64) -> 2600 | S64: 10400
B65: PREVIOUS YEAR VARIANCE | C65: =C62-C64 -> -200 | D65: =D62-D64 -> -400 | E65: =E62-E64 -> 300 | F65: =F62-F64 -> -300 | G65: =G62-G64 -> -200 | H65: =H62-H64 -> -400 | I65: =I62-I64 -> 300 | J65: =J62-J64 -> -300 | K65: =K62-K64 -> -200 | L65: =L62-L64 -> -400 | M65: =M62-M64 -> 300 | N65: =N62-N64 -> -300 | O65: =O62-O64 -> -200 | P65: =P62-P64 -> -400 | Q65: =Q62-Q64 -> 300 | R65: =R62-R64 -> -300 | S65: -1200
B66: NET FIXED ASSETS
B67: BUDGET | C67: 1000 | D67: 1000 | E67: 1000 | F67: =SUM(C67:E67) -> 3000 | G67: 1000 | H67: 1000 | I67: 1000 | J67: =SUM(G67:I67) -> 3000 | K67: 1000 | L67: 1000 | M67: 1000 | N67: =SUM(K67:M67) -> 3000 | O67: 1000 | P67: 1000 | Q67: 1000 | R67: =SUM(O67:Q67) -> 3000 | S67: =SUM(F67,J67,N67,R67) -> 12000
B68: ACTUAL | C68: 500 | D68: 700 | E68: 1100 | F68: =SUM(C68:E68) -> 2300 | G68: 500 | H68: 700 | I68: 1100 | J68: =SUM(G68:I68) -> 2300 | K68: 500 | L68: 700 | M68: 1100 | N68: =SUM(K68:M68) -> 2300 | O68: 500 | P68: 700 | Q68: 1100 | R68: =SUM(O68:Q68) -> 2300 | S68: =SUM(F68,J68,N68,R68) -> 9200
B69: VARIANCE | C69: =C68-C67 -> -500 | D69: =D68-D67 -> -300 | E69: =E68-E67 -> 100 | F69: =F68-F67 -> -700 | G69: =G68-G67 -> -500 | H69: =H68-H67 -> -300 | I69: =I68-I67 -> 100 | J69: =J68-J67 -> -700 | K69: =K68-K67 -> -500 | L69: =L68-L67 -> -300 | M69: =M68-M67 -> 100 | N69: =N68-N67 -> -700 | O69: =O68-O67 -> -500 | P69: =P68-P67 -> -300 | Q69: =Q68-Q67 -> 100 | R69: =R68-R67 -> -700 | S69: -2800
B70: PREVIOUS YEAR ACTUAL | C70: 700 | D70: 1100 | E70: 800 | F70: =SUM(C70:E70) -> 2600 | G70: 700 | H70: 1100 | I70: 800 | J70: =SUM(G70:I70) -> 2600 | K70: 700 | L70: 1100 | M70: 800 | N70: =SUM(K70:M70) -> 2600 | O70: 700 | P70: 1100 | Q70: 800 | R70: =SUM(O70:Q70) -> 2600 | S70: 10400
B71: PREVIOUS YEAR VARIANCE | C71: =C68-C70 -> -200 | D71: =D68-D70 -> -400 | E71: =E68-E70 -> 300 | F71: =F68-F70 -> -300 | G71: =G68-G70 -> -200 | H71: =H68-H70 -> -400 | I71: =I68-I70 -> 300 | J71: =J68-J70 -> -300 | K71: =K68-K70 -> -200 | L71: =L68-L70 -> -400 | M71: =M68-M70 -> 300 | N71: =N68-N70 -> -300 | O71: =O68-O70 -> -200 | P71: =P68-P70 -> -400 | Q71: =Q68-Q70 -> 300 | R71: =R68-R70 -> -300 | S71: -1200
B72: ACCOUNTS PAYABLE
B73: BUDGET | C73: 1000 | D73: 1000 | E73: 1000 | F73: =SUM(C73:E73) -> 3000 | G73: 1000 | H73: 1000 | I73: 1000 | J73: =SUM(G73:I73) -> 3000 | K73: 1000 | L73: 1000 | M73: 1000 | N73: =SUM(K73:M73) -> 3000 | O73: 1000 | P73: 1000 | Q73: 1000 | R73: =SUM(O73:Q73) -> 3000 | S73: =SUM(F73,J73,N73,R73) -> 12000
B74: ACTUAL | C74: 500 | D74: 700 | E74: 1100 | F74: =SUM(C74:E74) -> 2300 | G74: 500 | H74: 700 | I74: 1100 | J74: =SUM(G74:I74) -> 2300 | K74: 500 | L74: 700 | M74: 1100 | N74: =SUM(K74:M74) -> 2300 | O74: 500 | P74: 700 | Q74: 1100 | R74: =SUM(O74:Q74) -> 2300 | S74: =SUM(F74,J74,N74,R74) -> 9200
B75: VARIANCE | C75: =C74-C73 -> -500 | D75: =D74-D73 -> -300 | E75: =E74-E73 -> 100 | F75: =F74-F73 -> -700 | G75: =G74-G73 -> -500 | H75: =H74-H73 -> -300 | I75: =I74-I73 -> 100 | J75: =J74-J73 -> -700 | K75: =K74-K73 -> -500 | L75: =L74-L73 -> -300 | M75: =M74-M73 -> 100 | N75: =N74-N73 -> -700 | O75: =O74-O73 -> -500 | P75: =P74-P73 -> -300 | Q75: =Q74-Q73 -> 100 | R75: =R74-R73 -> -700 | S75: -2800
B76: PREVIOUS YEAR ACTUAL | C76: 700 | D76: 1100 | E76: 800 | F76: =SUM(C76:E76) -> 2600 | G76: 700 | H76: 1100 | I76: 800 | J76: =SUM(G76:I76) -> 2600 | K76: 700 | L76: 1100 | M76: 800 | N76: =SUM(K76:M76) -> 2600 | O76: 700 | P76: 1100 | Q76: 800 | R76: =SUM(O76:Q76) -> 2600 | S76: 10400
B77: PREVIOUS YEAR VARIANCE | C77: =C74-C76 -> -200 | D77: =D74-D76 -> -400 | E77: =E74-E76 -> 300 | F77: =F74-F76 -> -300 | G77: =G74-G76 -> -200 | H77: =H74-H76 -> -400 | I77: =I74-I76 -> 300 | J77: =J74-J76 -> -300 | K77: =K74-K76 -> -200 | L77: =L74-L76 -> -400 | M77: =M74-M76 -> 300 | N77: =N74-N76 -> -300 | O77: =O74-O76 -> -200 | P77: =P74-P76 -> -400 | Q77: =Q74-Q76 -> 300 | R77: =R74-R76 -> -300 | S77: -1200
B78: LONG-TERM DEBT
B79: BUDGET | C79: 1000 | D79: 1000 | E79: 1000 | F79: =SUM(C79:E79) -> 3000 | G79: 1000 | H79: 1000 | I79: 1000 | J79: =SUM(G79:I79) -> 3000 | K79: 1000 | L79: 1000 | M79: 1000 | N79: =SUM(K79:M79) -> 3000 | O79: 1000 | P79: 1000 | Q79: 1000 | R79: =SUM(O79:Q79) -> 3000 | S79: =SUM(F79,J79,N79,R79) -> 12000
B80: ACTUAL | C80: 500 | D80: 700 | E80: 1100 | F80: =SUM(C80:E80) -> 2300 | G80: 500 | H80: 700 | I80: 1100 | J80: =SUM(G80:I80) -> 2300 | K80: 500 | L80: 700 | M80: 1100 | N80: =SUM(K80:M80) -> 2300 | O80: 500 | P80: 700 | Q80: 1100 | R80: =SUM(O80:Q80) -> 2300 | S80: =SUM(F80,J80,N80,R80) -> 9200
B81: VARIANCE | C81: =C80-C79 -> -500 | D81: =D80-D79 -> -300 | E81: =E80-E79 -> 100 | F81: =F80-F79 -> -700 | G81: =G80-G79 -> -500 | H81: =H80-H79 -> -300 | I81: =I80-I79 -> 100 | J81: =J80-J79 -> -700 | K81: =K80-K79 -> -500 | L81: =L80-L79 -> -300 | M81: =M80-M79 -> 100 | N81: =N80-N79 -> -700 | O81: =O80-O79 -> -500 | P81: =P80-P79 -> -300 | Q81: =Q80-Q79 -> 100 | R81: =R80-R79 -> -700 | S81: -2800
B82: PREVIOUS YEAR ACTUAL | C82: 700 | D82: 1100 | E82: 800 | F82: =SUM(C82:E82) -> 2600 | G82: 700 | H82: 1100 | I82: 800 | J82: =SUM(G82:I82) -> 2600 | K82: 700 | L82: 1100 | M82: 800 | N82: =SUM(K82:M82) -> 2600 | O82: 700 | P82: 1100 | Q82: 800 | R82: =SUM(O82:Q82) -> 2600 | S82: 10400
B83: PREVIOUS YEAR VARIANCE | C83: =C80-C82 -> -200 | D83: =D80-D82 -> -400 | E83: =E80-E82 -> 300 | F83: =F80-F82 -> -300 | G83: =G80-G82 -> -200 | H83: =H80-H82 -> -400 | I83: =I80-I82 -> 300 | J83: =J80-J82 -> -300 | K83: =K80-K82 -> -200 | L83: =L80-L82 -> -400 | M83: =M80-M82 -> 300 | N83: =N80-N82 -> -300 | O83: =O80-O82 -> -200 | P83: =P80-P82 -> -400 | Q83: =Q80-Q82 -> 300 | R83: =R80-R82 -> -300 | S83: -1200
B84: OTHER
B85: BUDGET | C85: 1000 | D85: 1000 | E85: 1000 | F85: =SUM(C85:E85) -> 3000 | G85: 1000 | H85: 1000 | I85: 1000 | J85: =SUM(G85:I85) -> 3000 | K85: 1000 | L85: 1000 | M85: 1000 | N85: =SUM(K85:M85) -> 3000 | O85: 1000 | P85: 1000 | Q85: 1000 | R85: =SUM(O85:Q85) -> 3000 | S85: =SUM(F85,J85,N85,R85) -> 12000
B86: ACTUAL | C86: 500 | D86: 700 | E86: 1100 | F86: =SUM(C86:E86) -> 2300 | G86: 500 | H86: 700 | I86: 1100 | J86: =SUM(G86:I86) -> 2300 | K86: 500 | L86: 700 | M86: 1100 | N86: =SUM(K86:M86) -> 2300 | O86: 500 | P86: 700 | Q86: 1100 | R86: =SUM(O86:Q86) -> 2300 | S86: =SUM(F86,J86,N86,R86) -> 9200
B87: VARIANCE | C87: =C86-C85 -> -500 | D87: =D86-D85 -> -300 | E87: =E86-E85 -> 100 | F87: =F86-F85 -> -700 | G87: =G86-G85 -> -500 | H87: =H86-H85 -> -300 | I87: =I86-I85 -> 100 | J87: =J86-J85 -> -700 | K87: =K86-K85 -> -500 | L87: =L86-L85 -> -300 | M87: =M86-M85 -> 100 | N87: =N86-N85 -> -700 | O87: =O86-O85 -> -500 | P87: =P86-P85 -> -300 | Q87: =Q86-Q85 -> 100 | R87: =R86-R85 -> -700 | S87: -2800
B88: PREVIOUS YEAR ACTUAL | C88: 700 | D88: 1100 | E88: 800 | F88: =SUM(C88:E88) -> 2600 | G88: 700 | H88: 1100 | I88: 800 | J88: =SUM(G88:I88) -> 2600 | K88: 700 | L88: 1100 | M88: 800 | N88: =SUM(K88:M88) -> 2600 | O88: 700 | P88: 1100 | Q88: 800 | R88: =SUM(O88:Q88) -> 2600 | S88: 10400
B89: PREVIOUS YEAR VARIANCE | C89: =C86-C88 -> -200 | D89: =D86-D88 -> -400 | E89: =E86-E88 -> 300 | F89: =F86-F88 -> -300 | G89: =G86-G88 -> -200 | H89: =H86-H88 -> -400 | I89: =I86-I88 -> 300 | J89: =J86-J88 -> -300 | K89: =K86-K88 -> -200 | L89: =L86-L88 -> -400 | M89: =M86-M88 -> 300 | N89: =N86-N88 -> -300 | O89: =O86-O88 -> -200 | P89: =P86-P88 -> -400 | Q89: =Q86-Q88 -> 300 | R89: =R86-R88 -> -300 | S89: -1200
C91: CLICK HERE TO CREATE BUSINESS BUDGET TEMPLATES IN SMARTSHEET
